Workbook

Sheet ค่าใช้จ่าย
B1: งบประมาณจัดกิจกรรมสำหรับ [ชื่อกิจกรรม] | H1: ค่าใช้จ่าย
B3: ค่าใช้จ่ายทั้งหมด | G3: ค่าใช้จ่ายโดยประมาณ | H3: ค่าใช้จ่ายจริง
G4: =SUM(C11,C19,C25,C32,G11,G19,G24) -> ฿882.00 | H4: =SUM(D11,D19,D25,D32,H11,H19,H24) -> ฿333.00
B6: สถานที่ | C6: ค่าใช้จ่ายโดยประมาณ | D6: ค่าใช้จ่ายจริง | F6: อาหารว่าง | G6: ค่าใช้จ่ายโดยประมาณ | H6: ค่าใช้จ่ายจริง
B7: ค่าห้องและหอประชุม | C7: ฿500.00 | F7: อาหาร
B8: เจ้าหน้าที่ของสถานที่ | F8: เครื่องดื่ม | G8: ฿20.00
B9: อุปกรณ์ | F9: ผ้าปูโต๊ะ | H9: ฿20.00
B10: โต๊ะและเก้าอี้ | F10: พนักงานและเงินค่าตอบแทน
B11: ผลรวม | C11: =SUBTOTAL(109,ตาราง1[ค่าใช้จ่ายโดยประมาณ]) -> ฿500.00 | D11: =SUBTOTAL(109,ตาราง1[ค่าใช้จ่ายจริง]) -> ฿0.00 | F11: ผลรวม | G11: =SUBTOTAL(109,ตาราง3[ค่าใช้จ่ายโดยประมาณ]) -> ฿20.00 | H11: =SUBTOTAL(109,ตาราง3[ค่าใช้จ่ายจริง]) -> ฿20.00
B13: การตกแต่ง | C13: ค่าใช้จ่ายโดยประมาณ | D13: ค่าใช้จ่ายจริง | F13: รายการแสดง | G13: ค่าใช้จ่ายโดยประมาณ | H13: ค่าใช้จ่ายจริง
B14: ดอกไม้ | C14: ฿200.00 | D14: ฿300.00 | F14: ผู้แสดง
B15: เทียน | F15: ลำโพง | G15: ฿30.00
B16: โคมไฟ | F16: การเดินทาง
B17: บอลลูน | F17: โรงแรม
B18: วัสดุกระดาษ | F18: อื่นๆ
B19: ผลรวม | C19: =SUBTOTAL(109,ตาราง4[ค่าใช้จ่ายโดยประมาณ]) -> ฿200.00 | D19: =SUBTOTAL(109,ตาราง4[ค่าใช้จ่ายจริง]) -> ฿300.00 | F19: ผลรวม | G19: =SUBTOTAL(109,ตาราง5[ค่าใช้จ่ายโดยประมาณ]) -> ฿30.00 | H19: =SUBTOTAL(109,ตาราง5[ค่าใช้จ่ายจริง]) -> ฿0.00
B21: การประชาสัมพันธ์ | C21: ค่าใช้จ่ายโดยประมาณ | D21: ค่าใช้จ่ายจริง | F21: รางวัล | G21: ค่าใช้จ่ายโดยประมาณ | H21: ค่าใช้จ่ายจริง
B22: งานกราฟิก | F22: สายสะพาย/โล่/ถ้วยรางวัล
B23: การถ่ายสำเนา/การพิมพ์ | C23: ฿20.00 | F23: ของชำร่วย | G23: ฿100.00
B24: ค่าไปรษณีย์ | F24: ผลรวม | G24: =SUBTOTAL(109,ตาราง7[ค่าใช้จ่ายโดยประมาณ]) -> ฿100.00 | H24: =SUBTOTAL(109,ตาราง7[ค่าใช้จ่ายจริง]) -> ฿0.00
B25: ผลรวม | C25: =SUBTOTAL(109,ตาราง6[ค่าใช้จ่ายโดยประมาณ]) -> ฿20.00 | D25: =SUBTOTAL(109,ตาราง6[ค่าใช้จ่ายจริง]) -> ฿0.00
B27: เบ็ดเตล็ด | C27: ค่าใช้จ่ายโดยประมาณ | D27: ค่าใช้จ่ายจริง
B28: โทรศัพท์ | D28: ฿13.00
B29: พาหนะเดินทาง | C29: ฿12.00
B30: อุปกรณ์เครื่องเขียน
B31: บริการโทรสาร
B32: ผลรวม | C32: =SUBTOTAL(109,ตาราง8[ค่าใช้จ่ายโดยประมาณ]) -> ฿12.00 | D32: =SUBTOTAL(109,ตาราง8[ค่าใช้จ่ายจริง]) -> ฿13.00

Sheet รายได้
B1: งบประมาณจัดกิจกรรมสำหรับ [ชื่อกิจกรรม] | G1: รายได้
B3: รายได้ทั้งหมด | F3: โดยประมาณ | G3: ตามที่เป็นจริง
F4: =SUM(F11, F18, F25, F33) -> ฿1,936.00 | G4: =SUM(G11,G18,G25, G33) -> ฿1,831.00
B6: ค่าธรรมเนียมในการเข้า
B7: จำนวนโดยประมาณ | C7: จำนวนจริง | D7: ประเภท | E7: ราคา | F7: รายได้โดยประมาณ | G7: รายได้จริง
B8: 300 | C8: 278 | D8: ผู้ใหญ่ @ | E8: ฿5.00 | F8: =B8*E8 -> ฿1,500.00 | G8: =C8*E8 -> ฿1,390.00
B9: 197 | C9: 195 | D9: เด็ก @ | E9: ฿2.00 | F9: =B9*E9 -> ฿394.00 | G9: =C9*E9 -> ฿390.00
B10: 42 | C10: 51 | D10: อื่นๆ @ | E10: ฿1.00 | F10: =B10*E10 -> ฿42.00 | G10: =C10*E10 -> ฿51.00
B11: ผลรวม | F11: =SUBTOTAL(109,ตาราง9[รายได้โดยประมาณ]) -> ฿1,936.00 | G11: =SUBTOTAL(109,ตาราง9[รายได้จริง]) -> ฿1,831.00
B13: โฆษณาในรายการแสดง
B14: จำนวนโดยประมาณ | C14: จำนวนจริง | D14: ประเภท | E14: ราคา | F14: รายได้โดยประมาณ | G14: รายได้จริง
B15: 12 | D15: ใบประหน้า @ | F15: =B15*E15 -> ฿0.00 | G15: =C15*E15 -> ฿0.00
C16: 158 | D16: ครึ่งหน้า @ | F16: =B16*E16 -> ฿0.00 | G16: =C16*E16 -> ฿0.00
B17: 4 | D17: 1/4 หน้า @ | F17: =B17*E17 -> ฿0.00 | G17: =C17*E17 -> ฿0.00
B18: ผลรวม | F18: =SUBTOTAL(109,ตาราง10[รายได้โดยประมาณ]) -> ฿0.00 | G18: =SUBTOTAL(109,ตาราง10[รายได้จริง]) -> ฿0.00
B20: ผู้จัดแสดงนิทรรศการ/ผู้จัดจำหน่าย
B21: จำนวนโดยประมาณ | C21: จำนวนจริง | D21: ประเภท | E21: ราคา | F21: รายได้โดยประมาณ | G21: รายได้จริง
B22: 23 | D22: บูธขนาดใหญ่ @ | F22: =B22*E22 -> ฿0.00 | G22: =C22*E22 -> ฿0.00
B23: 354 | D23: บูธขนาดกลาง @ | F23: =B23*E23 -> ฿0.00 | G23: =C23*E23 -> ฿0.00
B24: 56 | D24: บูธขนาดเล็ก @ | F24: =B24*E24 -> ฿0.00 | G24: =C24*E24 -> ฿0.00
B25: ผลรวม | F25: =SUBTOTAL(109,ตาราง11[รายได้โดยประมาณ]) -> ฿0.00 | G25: =SUBTOTAL(109,ตาราง11[รายได้จริง]) -> ฿0.00
B27: ยอดขายสินค้า
B28: จำนวนโดยประมาณ | C28: จำนวนจริง | D28: ประเภท | E28: ราคา | F28: รายได้โดยประมาณ | G28: รายได้จริง
D29: สินค้า @ | F29: =B29*E29 -> ฿0.00 | G29: =C29*E29 -> ฿0.00
B30: 123 | D30: สินค้า @ | F30: =B30*E30 -> ฿0.00 | G30: =C30*E30 -> ฿0.00
D31: สินค้า @ | F31: =B31*E31 -> ฿0.00 | G31: =C31*E31 -> ฿0.00
B32: 13 | D32: สินค้า @ | F32: =B32*E32 -> ฿0.00 | G32: =C32*E32 -> ฿0.00
B33: ผลรวม | F33: =SUBTOTAL(109,ตาราง12[รายได้โดยประมาณ]) -> ฿0.00 | G33: =SUBTOTAL(109,ตาราง12[รายได้จริง]) -> ฿0.00

Sheet สรุปกำไร - ขาดทุน
B1: งบประมาณจัดกิจกรรมสำหรับ [ชื่อกิจกรรม] | G1: สรุปกำไร
G2: ขาดทุน
C5: โดยประมาณ | D5: ค่าใช้จ่ายจริง
B6: รายได้ทั้งหมด | C6: =รายได้!F4 -> ฿1,936.00 | D6: =รายได้!G4 -> ฿1,831.00
B7: ค่าใช้จ่ายทั้งหมด | C7: =ค่าใช้จ่าย!G4 -> ฿882.00 | D7: =ค่าใช้จ่าย!H4 -> ฿333.00
B9: ผลกำไร (หรือขาดทุน) | C9: =C6-C7 -> ฿1,054.00 | D9: =D6-D7 -> ฿1,498.00
